bitfinex-derivatives/quotes_SOLF0:USTF0_20250202
["timestamp","ask_amount","ask_price","bid_price","bid_amount"]
[1738522566707,42.29668612,198.56,198.37,42.29668612]
[1738522566898,42.29668612,198.64,198.45,42.29668612]
[1738522567099,9.278,198.66,198.45,42.29668612]
[1738522567293,9.278,198.66,198.49,42.29668612]
[1738522567495,9.278,198.66,198.53,42.29668612]
[1738522567792,9.278,198.66,198.44,42.29668612]
[1738522567996,42.29668612,198.6,198.4,42.60428612]
[1738522568294,42.29668612,198.56,198.4,0.0854]
[1738522568499,5.042,198.46,198.36,42.29668612]
[1738522568698,42.29668612,198.56,198.36,42.29668612]
[1738522568899,5.0411,198.5,198.42,5.043]
[1738522569098,42.29668612,198.56,198.36,42.29668612]
[1738522569496,42.29668612,198.56,198.42,5.043]
[1738522569803,0.03798014,198.48,198.44,0.03307753]
[1738522570102,0.03798014,198.48,198.46,5.0419]
[1738522570299,42.29668612,198.6,198.4,42.29668612]
[1738522570501,42.29668612,198.56,198.36,42.29668612]
[1738522570800,0.03854871,198.49,198.45,0.03463098]
[1738522571003,0.03854871,198.49,198.47,5.0417]
[1738522571198,0.03854871,198.49,198.45,0.03463098]
[1738522571503,42.29668612,198.6,198.4,42.29668612]
[1738522571698,0.03310661,198.49,198.45,0.03293117]
[1738522572098,3.0002,198.61,198.5,5.0408]
[1738522572298,3.0002,198.61,198.44,42.29668612]
[1738522572504,3.0002,198.61,198.45,0.03463098]
[1738522572695,9.278,198.66,198.48,42.29668612]
[1738522572897,9.278,198.66,198.52,42.29668612]
[1738522573098,9.278,198.66,198.46,0.0794]
[1738522573099,25.9533109,198.72,198.56,42.29668612]
[1738522573299,0.90015214,198.71,198.64,5.0372]
[1738522573496,25.9533109,198.72,198.46,0.2975]
[1738522573803,25.9533109,198.72,198.6,42.29668612]
[1738522574003,6.239e-05,198.69,198.66,0.03244066]
[1738522574196,6.239e-05,198.69,198.67,5.0365]
[1738522574399,6.239e-05,198.69,198.66,0.03244066]
[1738522574601,6.239e-05,198.69,198.55,42.29668612]
[1738522574995,6.239e-05,198.69,198.63,42.29668612]
[1738522575198,6.4859732,198.8,198.67,42.29668612]
[1738522575906,6.4859732,198.8,198.76,5.0343]
[1738522576302,6.4859732,198.8,198.63,42.29668612]
[1738522576507,42.29668612,198.76,198.59,42.29668612]
[1738522576805,6.4859732,198.8,198.51,5.26]
[1738522576806,42.29668612,198.8,198.63,42.29668612]
[1738522577107,0.037816,198.73,198.69,0.03819827]
[1738522577606,0.037816,198.73,198.7,5.0358]
[1738522577803,0.037816,198.73,198.69,0.03819827]
[1738522578504,0.037816,198.73,198.59,42.29668612]
[1738522578909,42.29668612,198.76,198.59,42.29668612]
[1738522579115,42.29668612,198.8,198.59,42.29668612]
[1738522579616,42.29668612,198.76,198.55,42.29668612]
[1738522579808,0.03367788,198.71,198.67,2.426e-05]
[1738522580009,42.29668612,198.68,198.47,42.29668612]
[1738522580212,42.29668612,198.64,198.46,0.0734]
[1738522580413,42.29668612,198.64,198.44,100.39536365]
[1738522581014,5.9704,198.67,198.47,42.29668612]
[1738522581218,5.9704,198.67,198.51,42.29668612]
[1738522581415,5.9704,198.67,198.52,0.0346807]
[1738522581617,5.9704,198.67,198.55,42.29668612]
[1738522581813,2.9461,198.71,198.59,42.29668612]
[1738522582320,42.29668612,198.68,198.51,42.29668612]
[1738522582721,0.03754169,198.61,198.58,0.03460884]
[1738522583325,2.9461,198.71,198.58,0.03460884]
[1738522583622,0.03516643,198.61,198.58,0.03460884]
[1738522583831,0.03516643,198.61,198.43,42.29668612]
[1738522584021,5.039,198.58,198.43,42.29668612]
[1738522584318,42.29668612,198.57,198.35,0.0734]
[1738522584528,42.29668612,198.57,198.4,5.0434]
[1738522584723,42.29668612,198.57,198.36,1.00826779]
[1738522584920,6.3722,198.6,198.47,42.29668612]
[1738522585120,42.29668612,198.74,198.51,42.29668612]
[1738522585423,3.1699,198.71,198.55,42.29668612]
[1738522585629,3.1699,198.71,198.51,42.29668612]
[1738522585919,0.0334682,198.64,198.61,0.03233264]
[1738522586320,42.29668612,198.68,198.51,42.29668612]
[1738522586522,42.29668612,198.64,198.46,0.083]
[1738522586719,42.29668612,198.64,198.61,0.0334777]
[1738522586720,1.04267046,198.64,198.61,0.0334777]
[1738522586915,1.00684655,198.64,198.52,42.29668612]
[1738522587216,1.00684655,198.64,198.61,0.03315394]
[1738522587423,42.29668612,198.68,198.48,42.29668612]
[1738522587616,0.03432964,198.6,198.48,42.29668612]
[1738522587919,0.03432964,198.6,198.46,0.083]
[1738522587920,0.03432964,198.6,198.58,5.0388]
[1738522588124,3.1699,198.71,198.52,42.29668612]
[1738522588519,3.1699,198.71,198.56,42.29668612]
[1738522588719,0.03286891,198.63,198.6,0.03240383]
[1738522588921,6.891e-05,198.63,198.61,5.0382]
[1738522589224,3.1699,198.71,198.6,0.03240383]
[1738522589433,6.1464,198.76,198.6,42.32908995]
[1738522589620,1.0062893,198.75,198.7,5.0359]
[1738522590021,1.0062893,198.75,198.64,42.29668612]
[1738522590320,23.15708288,198.79,198.73,42.29668612]
[1738522590520,7.28658288,198.79,198.77,5.034]
[1738522590728,8.288e-05,198.79,198.77,5.034]
[1738522590922,8.288e-05,198.79,198.77,47.33068612]
[1738522591925,8.288e-05,198.79,198.76,0.03786494]
[1738522592521,5.034,198.78,198.76,0.03786494]
[1738522592726,8.288e-05,198.79,198.64,42.29668612]
[1738522592925,5.0353,198.73,198.6,47.33498612]
[1738522593125,48.46058612,198.78,198.6,42.29668612]
[1738522593419,48.46058612,198.78,198.52,0.0811]
[1738522593420,6.1639,198.78,198.64,42.29668612]
[1738522593620,8.288e-05,198.79,198.68,42.29668612]
[1738522593820,8.288e-05,198.79,198.76,42.29668612]
[1738522594024,8.288e-05,198.79,198.77,5.0341]
[1738522594435,3.0521,198.92,198.76,42.29668612]
[1738522594636,3.0521,198.92,198.8,47.32998612]
[1738522594927,45.34878612,198.92,198.76,0.03466066]
[1738522595123,42.29668612,198.88,198.76,0.03466066]
[1738522595321,45.34878612,198.92,198.67,0.0739]
[1738522595526,0.89910119,198.91,198.73,42.29668612]
[1738522595728,5.032,198.86,198.76,5.0342]
[1738522595928,0.0370244,198.81,198.78,0.03412931]
[1738522596131,0.0370244,198.81,198.66,42.29668612]
[1738522596326,42.29668612,198.83,198.66,42.29668612]
[1738522596522,42.29668612,198.83,198.59,0.0739]
[1738522596523,42.29668612,198.83,198.62,42.29668612]
[1738522596723,42.29668612,198.79,198.62,42.29668612]
[1738522597029,9.3187,198.78,198.66,42.29668612]
[1738522597224,42.29668612,198.91,198.7,42.29668612]
[1738522597425,9.3187,198.87,198.7,42.29668612]
[1738522597832,0.03595035,198.82,198.72,5.0353]
[1738522598028,0.03595035,198.82,198.7,42.29668612]
[1738522598224,0.03595035,198.82,198.77,0.03476064]
[1738522598531,42.29668612,198.83,198.66,42.29668612]
[1738522598731,42.29668612,198.79,198.66,1.00674519]
[1738522599036,42.29668612,198.75,198.58,42.29668612]
[1738522599245,9.0692,198.74,198.54,42.29668612]
[1738522599726,0.03621634,198.66,198.62,0.03004383]
[1738522600029,0.03621634,198.66,198.55,1.00730294]
[1738522600235,42.29668612,198.71,198.55,1.00730294]
[1738522600926,5.0367,198.68,198.58,5.0389]
[1738522601431,0.03597096,198.65,198.55,1.00730294]
[1738522602525,5.0375,198.64,198.55,1.00730294]
[1738522602726,0.03597096,198.65,198.55,1.00730294]
[1738522602929,0.03597096,198.65,198.4,0.0647]
[1738522602930,42.29668612,198.6,198.39,42.29668612]
[1738522603129,5.0395,198.57,198.46,5.042]
[1738522603435,42.29668612,198.56,198.35,125.11958865]
[1738522603824,42.29668612,198.56,198.39,42.29668612]
[1738522604025,0.03732242,198.53,198.35,125.11958865]
[1738522604430,42.29668612,198.56,198.35,125.11958865]
[1738522604830,11.4536,198.59,198.31,42.29668612]
[1738522604831,42.29668612,198.48,198.31,42.29668612]
[1738522605035,0.03666715,198.46,198.28,82.82290253]
[1738522605536,42.29668612,198.48,198.28,82.82290253]
[1738522605726,0.03290483,198.39,198.28,82.82290253]
[1738522605932,5.045,198.35,198.28,82.82290253]
[1738522606231,9.23500483,198.39,198.28,82.82290253]
[1738522606232,9.2021,198.39,198.28,82.82290253]
[1738522606426,9.2021,198.39,198.32,5.0455]
[1738522606632,0.0384067,198.33,198.28,82.82290253]
[1738522607028,9.2021,198.39,198.28,82.82290253]
[1738522607230,9.2021,198.39,196.83,48.00061141]
[1738522607231,0.03345567,198.32,198.17,1.0898]
[1738522607434,0.03345567,198.32,198.22,42.29668612]
[1738522607844,9.2021,198.39,198.22,42.29668612]
[1738522608139,2.706e-05,198.29,198.26,42.29668612]
[1738522608337,2.706e-05,198.29,198.27,5.0469]
[1738522608532,9.2021,198.39,198.22,42.29668612]
[1738522608833,5.0455,198.33,198.23,1.00892902]
[1738522609137,51.49878612,198.39,198.23,1.00892902]
[1738522609334,51.49878612,198.39,198.23,6.05662902]
[1738522609537,0.03538915,198.3,198.26,0.03520455]
[1738522610035,5.0452,198.34,198.25,5.0473]
[1738522610436,0.03375297,198.3,198.26,0.03736065]
[1738522612536,0.03375297,198.3,198.26,5.08436065]
[1738522612933,0.03375297,198.3,198.26,0.03736065]
[1738522613542,5.047,198.27,198.18,42.29668612]
[1738522614042,5.0467,198.28,198.21,5.0484]
[1738522614240,3.1153,198.29,198.18,42.29668612]
[1738522614634,9.2021,198.39,198.22,42.29668612]
[1738522614831,7.199e-05,198.25,198.22,42.29668612]
[1738522615238,3.1153,198.38,198.22,84.59337224]
[1738522615438,9.2021,198.39,198.28,42.29668612]
[1738522616139,42.29668612,198.52,198.23,1.1031]
[1738522616338,9.99960591,198.51,198.36,42.29668612]
[1738522616534,7.02220591,198.51,198.4,42.29668612]
[1738522616841,1.00750591,198.51,198.48,42.29668612]
[1738522617038,31.9680109,198.64,198.48,42.29668612]
[1738522617243,1.00689724,198.63,198.55,42.29668612]
[1738522617538,1.00689724,198.63,198.59,42.29668612]
[1738522617840,1.00689724,198.63,198.61,5.0381]
[1738522618034,6.4859732,198.81,198.63,42.29668612]
[1738522618341,6.4859732,198.81,198.72,42.29668612]
[1738522618536,6.4859732,198.81,198.66,42.29668612]
[1738522618742,0.03247578,198.74,198.7,0.03281134]
[1738522619544,0.03247578,198.74,198.62,42.29668612]
[1738522620241,42.29668612,198.72,198.5,42.29668612]
[1738522620446,9.5053,198.71,198.5,42.29668612]
[1738522620636,5.0361,198.7,198.55,5.0396]
[1738522620834,0.03739909,198.63,198.5,42.29668612]
[1738522621040,0.03739909,198.63,198.45,100.8843]
[1738522621241,42.29668612,198.69,198.45,100.8843]
[1738522621439,9.5053,198.71,198.53,42.29668612]
[1738522621640,0.0362596,198.56,198.49,42.29668612]
[1738522622046,42.29668612,198.69,198.49,42.29668612]
[1738522622543,0.03506394,198.54,198.49,42.29668612]
[1738522622943,5.0384,198.61,198.49,42.29668612]
[1738522623140,42.29668612,198.69,198.49,42.29668612]
[1738522623543,0.03298626,198.53,198.49,42.29668612]
[1738522623742,8.626e-05,198.53,198.52,5.0405]
[1738522623940,9.5053,198.71,198.49,42.29668612]
[1738522624143,9.5053,198.71,198.52,42.29668612]
[1738522625347,0.03484277,198.63,198.6,0.03182965]
[1738522625736,5.037,198.66,198.6,0.03182965]
[1738522626138,0.03496271,198.63,198.6,0.03182965]
[1738522626340,0.03496271,198.63,198.45,1.1043]
[1738522626648,0.03496271,198.63,198.44,42.29668612]
[1738522626849,3.2239,198.64,198.44,42.29668612]
[1738522627346,5.0397,198.56,198.46,5.0421]
[1738522627544,3.2239,198.64,198.44,42.29668612]
[1738522627739,0.03225593,198.56,198.44,42.29668612]
[1738522627935,0.03225593,198.56,198.48,42.29668612]
[1738522628351,3.2239,198.64,198.61,5.0382]
[1738522628541,9.5053,198.71,198.52,42.29668612]
[1738522628741,3.11,198.7,198.56,42.29668612]
[1738522629044,9.5053,198.71,198.6,42.29668612]
[1738522629344,3.11,198.77,198.64,42.29668612]
[1738522629743,5.9219,198.87,198.68,42.29668612]
[1738522629943,3.11,198.86,198.68,42.29668612]
[1738522630649,3.11,198.86,198.72,42.29668612]
[1738522631043,5.9219,198.87,198.81,5.0332]
[1738522631249,6.4859732,198.92,198.76,42.29668612]
[1738522631742,0.03715182,198.86,198.76,42.29668612]
[1738522632147,0.03715182,198.86,198.82,0.03655042]
[1738522632743,5.031,198.91,198.72,42.29668612]
[1738522633048,12.3527,198.95,198.76,42.29668612]
[1738522633251,0.03611707,198.86,198.82,0.03365734]
[1738522633753,42.29668612,198.9,198.68,42.29668612]
[1738522634048,42.29668612,198.86,198.64,42.29668612]
[1738522634239,42.29668612,198.78,198.6,42.29668612]
[1738522634440,42.29668612,198.78,198.56,42.38138612]
[1738522634739,9.0357,198.77,198.6,42.29668612]
[1738522634940,0.03365093,198.69,198.65,0.03466774]
[1738522635450,9.0357,198.77,198.62,42.29668612]
[1738522635945,0.0375173,198.69,198.65,0.03568753]
[1738522636553,9.0357,198.77,198.62,42.29668612]
[1738522636770,9.0357,198.77,198.66,42.29668612]
[1738522636950,7.794e-05,198.69,198.67,5.037]
[1738522637445,5.0331,198.83,198.71,5.0358]
[1738522637648,8.9516,198.87,198.66,42.29668612]
[1738522637945,8.9516,198.87,198.67,0.0574]
[1738522638150,42.29668612,198.8,198.62,42.29668612]
[1738522638349,0.03876069,198.78,198.75,3.641e-05]
[1738522638550,5.0362,198.7,198.58,5.0391]
[1738522638754,42.29668612,198.72,198.54,42.29668612]
[1738522638951,42.29668612,198.68,198.5,42.29668612]
[1738522639268,42.29668612,198.68,198.46,42.29668612]
[1738522639453,42.29668612,198.64,198.46,42.29668612]
[1738522639646,3.1534,198.63,198.46,42.29668612]
[1738522639852,3.1534,198.63,198.51,42.29668612]
[1738522640146,0.03873444,198.57,198.56,5.0397]
[1738522640652,0.03873444,198.57,198.53,0.03309451]
[1738522640848,3.1534,198.7,198.45,0.063]
[1738522640849,42.29668612,198.68,198.47,42.29668612]
[1738522641151,0.03675909,198.57,198.53,0.03494566]
[1738522641757,42.29668612,198.68,198.47,42.29668612]
[1738522642252,0.03275386,198.57,198.53,0.03230634]
[1738522642844,42.29668612,198.68,198.49,42.29668612]
[1738522643152,0.03863167,198.57,198.53,0.03494566]
[1738522643746,3.198,198.59,198.44,1.00786131]
[1738522643951,42.29668612,198.56,198.44,1.00786131]
[1738522644155,42.29668612,198.52,198.44,1.00786131]
[1738522644447,42.29668612,198.52,198.32,42.29668612]
[1738522644662,42.29668612,198.52,198.34,5.0452]
[1738522644848,42.29668612,198.52,198.32,42.29668612]
[1738522645048,5.24,198.54,198.32,42.29668612]
[1738522645647,5.24,198.54,198.36,42.29668612]
[1738522645648,0.0342879,198.44,198.36,42.29668612]
[1738522645850,0.0342879,198.44,198.32,42.29668612]
[1738522646047,0.0342879,198.44,198.28,42.29668612]
[1738522646355,5.24,198.54,198.32,42.29668612]
[1738522646547,48.79888612,198.55,198.36,42.29668612]
[1738522646751,7.592e-05,198.38,198.37,5.0446]
[1738522647247,7.592e-05,198.38,198.36,42.29668612]
[1738522647248,6.5022,198.55,198.36,42.29668612]
[1738522647451,6.5022,198.55,198.42,42.29668612]
[1738522647751,3.1889,198.58,198.46,42.29668612]
[1738522647956,6.3806,198.65,198.5,42.29668612]
[1738522648352,6.3806,198.65,198.47,0.0653]
[1738522648353,3.0981,198.69,198.54,42.29668612]
[1738522648662,1.218e-05,198.59,198.54,42.29668612]
[1738522649055,6.3806,198.73,198.58,42.29668612]
[1738522649254,5.24,198.8,198.62,42.29668612]
[1738522649454,5.0348,198.76,198.67,5.0369]
[1738522649652,9.0902,198.8,198.66,42.29668612]
[1738522650047,6.4859732,198.81,198.7,42.29668612]
[1738522650456,0.03187251,198.75,198.71,0.03629799]
[1738522653458,0.03187251,198.75,198.71,5.07209799]
[1738522653754,0.03187251,198.75,198.71,0.03629799]
[1738522654556,3.0436,198.87,198.72,42.29668612]
[1738522655054,3.0436,198.87,198.68,42.29668612]
[1738522655261,42.29668612,198.84,198.64,42.29668612]
[1738522655557,5.0355,198.73,198.65,5.0373]
[1738522655759,42.29668612,198.8,198.51,0.0796]
[1738522655958,42.3325105,198.76,198.51,0.0796]
[1738522656168,6.3027,198.75,198.51,0.0796]
[1738522657267,0.03710225,198.67,198.63,0.03241662]
[1738522657462,6.1822,198.83,198.63,42.32910274]
[1738522657658,3.188,198.82,198.63,42.32910274]
[1738522657853,3.188,198.82,198.63,42.29668612]
[1738522658057,3.188,198.82,198.67,42.29668612]
[1738522658458,8.2213,198.82,198.67,42.29668612]
[1738522658654,9.2971,198.83,198.71,42.29668612]
[1738522658858,42.29668612,198.92,198.73,0.03718397]
[1738522659060,42.29668612,198.88,198.73,0.03718397]
[1738522659458,0.03641168,198.79,198.67,42.29668612]
[1738522659858,42.29668612,198.92,198.67,42.29668612]
[1738522660062,0.90502091,198.91,198.72,42.29668612]
[1738522660262,3.831e-05,198.75,198.72,42.29668612]
[1738522660561,3.831e-05,198.75,198.67,42.29668612]
[1738522660759,42.29668612,198.84,198.67,42.29668612]
[1738522660958,42.29668612,198.84,198.63,42.29668612]
[1738522661159,5.0343,198.78,198.68,5.0366]
[1738522661457,42.29668612,198.84,198.63,42.29668612]
[1738522661654,42.29668612,198.84,198.71,0.03199467]
[1738522661655,0.03345066,198.75,198.71,0.03199467]
[1738522662062,42.29668612,198.84,198.63,42.29668612]
[1738522662463,0.03868242,198.75,198.71,0.03264187]
[1738522662859,42.29668612,198.72,198.51,42.29668612]
[1738522663164,42.29668612,198.72,198.41,117.83678344]
[1738522663165,42.29668612,198.64,198.43,214.92837199]
[1738522663466,5.0408,198.53,198.44,5.0426]
[1738522663664,9.2549,198.63,198.43,172.63168587]
[1738522663665,42.29668612,198.56,198.43,172.63168587]
[1738522664063,42.29668612,198.6,198.43,172.63168587]
[1738522664363,0.03403388,198.53,198.49,0.03683088]
[1738522665367,6.0347,198.63,198.5,42.29668612]
[1738522665560,9.163,198.72,198.54,42.29668612]
[1738522665756,6.2122,198.72,198.58,42.29668612]
[1738522666666,0.0352157,198.67,198.63,0.03430353]
[1738522667566,2.9508,198.79,198.63,0.03430353]
[1738522667963,2.9508,198.79,198.68,5.0367]
[1738522668168,6.0914,198.81,198.66,42.29668612]
[1738522668465,3.0809,198.83,198.66,42.29668612]
[1738522668670,6.0914,198.93,198.74,42.29668612]
[1738522668963,6.4859732,198.94,198.82,42.29668612]
[1738522669169,6.4859732,198.94,198.86,42.29668612]
[1738522669769,0.03495336,198.92,198.88,0.03616699]
[1738522670363,0.03495336,198.92,198.88,5.06766699]
[1738522670560,0.03495336,198.92,198.88,0.03616699]
[1738522671477,0.00605336,198.92,198.88,0.03616699]
[1738522671667,0.00605336,198.92,198.88,5.06746699]
[1738522671869,0.00605336,198.92,198.88,0.03616699]
[1738522673770,0.00605336,198.92,198.89,42.29668612]
[1738522673967,0.00605336,198.92,198.9,5.031]
[1738522674269,42.29668612,199.1,198.89,42.29668612]
[1738522674469,42.29668612,199.14,198.96,5.0295]
[1738522674967,42.29668612,199.14,198.93,42.29668612]
[1738522675470,0.03247721,199.02,198.98,0.03355905]
[1738522675766,0.03247721,199.02,198.77,42.29668612]
[1738522675767,0.03247721,199.02,198.84,42.29668612]
[1738522676067,5.0306,198.93,198.82,5.033]
[1738522676264,42.29668612,199.02,198.8,42.29668612]
[1738522676469,42.29668612,198.98,198.8,42.29668612]
[1738522676662,2.9841,198.97,198.8,42.29668612]
[1738522677168,5.0285,199.01,198.9,5.031]
[1738522677370,45.28078612,199.06,198.87,0.03435106]
[1738522677570,42.29668612,199.02,198.87,0.03435106]
[1738522677763,0.03488229,198.97,198.8,42.29668612]
[1738522678076,42.29668612,198.94,198.76,42.29668612]
[1738522678287,5.0318,198.88,198.78,5.034]
[1738522678480,2.9841,198.93,198.87,0.03361473]
[1738522678869,0.03637539,198.92,198.76,42.29668612]
[1738522679075,42.29668612,198.86,198.69,18.0394601]
[1738522679462,42.29668612,198.9,198.66,42.29668612]
[1738522679663,42.29668612,198.9,198.7,42.29668612]
[1738522679873,42.29668612,198.86,198.66,42.29668612]
[1738522680070,5.0343,198.78,198.68,5.0366]
[1738522680267,42.29668612,198.78,198.5,82.82290253]
[1738522680470,3.0329,198.77,198.51,5.22]
[1738522680672,3.0329,198.77,198.63,42.29668612]
[1738522680869,0.03415517,198.78,198.67,42.29668612]
[1738522681066,6.1967,198.87,198.71,42.29668612]
[1738522681271,42.29668612,199.0,198.79,42.29668612]
[1738522681467,42.29668612,198.92,198.71,42.29668612]
[1738522681768,3.0329,198.9,198.71,42.29668612]
[1738522681969,0.03606721,198.87,198.83,0.03231291]
[1738522682376,42.29668612,198.96,198.75,42.29668612]
[1738522682676,5.0302,198.94,198.85,5.0323]
[1738522682879,1.095e-05,198.87,198.85,5.0323]
[1738522683172,42.29668612,199.0,198.83,0.03864395]
[1738522683173,6.1834,199.02,198.83,42.29668612]
[1738522683374,6.1834,199.02,198.89,42.29668612]
[1738522683575,6.2777,199.06,198.93,42.29668612]
[1738522684069,6.1834,199.15,198.97,42.29668612]
[1738522684273,6.1834,199.15,199.03,5.0277]
[1738522684471,6.1834,199.15,198.88,42.29668612]
[1738522684671,0.03187851,199.08,199.04,0.03604662]
[1738522684875,5.0286,199.0,198.84,42.29668612]
[1738522685072,42.29668612,199.05,198.84,42.29668612]
[1738522685273,3.0115,199.04,198.88,42.29668612]
[1738522685669,3.0115,199.04,198.78,99.58]
[1738522685873,3.0115,199.04,198.75,82.82290253]
[1738522686172,5.0317,198.88,198.75,82.82290253]
[1738522686566,42.29668612,198.89,198.75,82.82290253]
[1738522686774,5.0334,198.82,198.8,0.03255234]
[1738522686974,9.1781,198.92,198.8,0.03255234]
[1738522687167,0.03332236,198.84,198.8,0.03255234]
[1738522687582,0.03332236,198.84,198.75,82.82290253]
[1738522687771,42.29668612,198.8,198.75,82.82290253]
[1738522687971,3.2446,198.79,198.75,82.82290253]
[1738522688170,0.03234344,198.81,198.75,82.82290253]
[1738522688367,0.03234344,198.81,198.76,0.03503131]
[1738522688779,42.29668612,198.88,198.76,0.03503131]
[1738522688975,3.2446,198.91,198.7,42.29668612]
[1738522689170,0.03579588,198.8,198.7,42.29668612]
[1738522689473,0.03579588,198.8,198.58,104.8]
[1738522689474,42.29668612,198.76,198.4,99.6]
[1738522689669,42.29668612,198.71,198.51,42.29668612]
[1738522690075,42.29668612,198.67,198.47,185.44383482]
[1738522690277,42.29668612,198.67,198.61,0.03268878]
[1738522690473,42.29668612,198.67,198.48,82.82290253]
[1738522690679,42.32956076,198.63,198.48,82.82290253]
[1738522690982,0.03287464,198.63,198.48,82.82290253]
[1738522691279,42.29668612,198.59,198.48,82.82290253]
[1738522691479,6.0674,198.58,198.48,82.82290253]
[1738522691676,42.29668612,198.55,198.48,82.82290253]
[1738522691875,42.29668612,198.51,198.48,19.26940681]
[1738522692078,42.29668612,198.51,198.46,126.49785811]
[1738522692384,47.33798612,198.51,198.46,126.49785811]
[1738522692672,42.29668612,198.51,198.33,42.29668612]
[1738522692884,42.29668612,198.59,198.41,42.29668612]
[1738522693077,42.29668612,198.67,198.45,42.29668612]
[1738522693271,0.90497162,198.66,198.45,42.29668612]
[1738522693475,5.0376,198.65,198.46,5.0422]
[1738522693673,42.29668612,198.67,198.49,42.29668612]
[1738522693877,0.03672638,198.57,198.53,42.29668612]
[1738522694081,0.03672638,198.57,198.49,42.29668612]
[1738522694382,0.03672638,198.57,198.56,0.0355509]
[1738522694584,42.29668612,198.67,198.56,0.0355509]
[1738522694878,0.03722546,198.58,198.45,47.51668612]
[1738522695086,0.03722546,198.58,198.46,6.3721]
[1738522695278,42.29668612,198.67,198.46,6.3721]
[1738522695482,5.0384,198.62,198.46,6.3721]
[1738522695684,5.0384,198.62,198.5,0.0360091]
[1738522695884,0.03185317,198.54,198.46,6.3721]
[1738522696284,52.77513855,198.77,198.46,6.3721]
[1738522696285,42.29668612,198.58,198.46,6.3721]
[1738522696490,42.29668612,198.58,198.41,3.1452]
[1738522697382,0.03812935,198.51,198.41,45.44188612]
[1738522697582,0.03812935,198.51,198.41,3.1452]
[1738522697782,0.03812935,198.51,198.37,3.2273]
[1738522698284,42.29668612,198.54,198.37,3.2273]
[1738522698480,5.04,198.56,198.41,5.0437]
[1738522698686,0.03780498,198.46,198.41,42.29668612]
[1738522698878,0.03780498,198.46,198.37,45.52398612]
[1738522699181,42.29668612,198.58,198.37,45.52398612]
[1738522699386,42.29668612,198.54,198.37,3.2273]
[1738522699589,0.03370355,198.43,198.33,6.3721]
[1738522699980,42.29668612,198.5,198.33,6.3721]
[1738522700493,0.03478841,198.4,198.25,42.29668612]
[1738522700687,5.07868841,198.4,198.27,5.0471]
[1738522700884,42.29668612,198.42,198.25,42.29668612]
[1738522701081,42.29668612,198.46,198.25,42.29668612]
[1738522701287,0.03581788,198.34,198.25,42.29668612]
[1738522701485,0.03581788,198.34,198.24,6.4074]
[1738522701690,42.29668612,198.38,198.24,6.4074]
[1738522701890,47.51668612,198.38,198.24,6.4074]
[1738522702090,42.29668612,198.42,198.24,6.4074]
[1738522702290,0.03245776,198.31,198.29,5.0466]
[1738522702490,42.29668612,198.46,198.25,42.29668612]
[1738522702788,0.90175987,198.45,198.24,6.4074]
[1738522702993,42.29668612,198.5,198.28,42.29668612]
[1738522703189,42.29668612,198.47,198.29,3.0088]
[1738522703785,47.51668612,198.51,198.32,42.29668612]
[1738522703986,5.0412,198.51,198.39,5.044]
[1738522704192,42.29668612,198.47,198.36,0.03245776]
[1738522704385,42.29668612,198.47,198.29,3.0088]
[1738522704591,42.29668612,198.51,198.31,42.29668612]
[1738522704888,42.29668612,198.55,198.35,42.29668612]
[1738522705188,5.0405,198.54,198.35,42.29668612]
[1738522705394,0.03318952,198.43,198.39,0.03787647]
[1738522705591,42.29668612,198.59,198.39,42.33456259]
[1738522705890,42.29668612,198.63,198.43,42.29668612]
[1738522706290,5.04,198.56,198.4,9.3013]
[1738522706592,42.29668612,198.59,198.4,9.3013]
[1738522706795,42.29668612,198.55,198.4,9.3013]
[1738522706994,0.03607152,198.5,198.46,0.03314023]
[1738522707891,42.29668612,198.47,198.27,42.29668612]
[1738522708087,0.03607152,198.5,198.31,42.29668612]
[1738522708289,0.03607152,198.5,198.35,42.29668612]
[1738522708493,42.29668612,198.55,198.35,42.29668612]
[1738522708690,42.29668612,198.51,198.28,9.1979]
[1738522708891,42.29668612,198.51,198.31,42.29668612]
[1738522709193,5.0417,198.49,198.39,5.0441]
[1738522709498,0.03495041,198.41,198.39,5.0441]
[1738522709792,5.0413,198.5,198.42,5.0433]
[1738522709996,0.03654518,198.42,198.31,42.29668612]
[1738522710198,0.03654518,198.42,198.38,0.0341786]
[1738522710397,42.29668612,198.47,198.38,0.0341786]
[1738522710789,0.03833691,198.42,198.37,5.0445]
[1738522710996,0.03833691,198.42,198.3,42.29668612]
[1738522711193,42.29668612,198.51,198.41,0.03858946]
[1738522711395,5.0432,198.43,198.41,8.946e-05]
[1738522711593,0.03577629,198.38,198.28,9.1979]
[1738522712298,42.29668612,198.39,198.23,3.1921]
[1738522712688,0.038135,198.35,198.31,0.02988704]
[1738522712998,0.038135,198.35,198.19,3.0307]